bitfinex/quotes_SOLUSD_20240824
["timestamp","ask_amount","ask_price","bid_price","bid_amount"]
[1724538780728,6.2842,159.13,159.02,65.0]
[1724538781237,6.2842,159.13,159.03,4.59608389]
[1724538782259,45.0,159.14,159.03,4.59608389]
[1724538782559,45.0,159.14,159.04,1.25710407]
[1724538782862,51.284,159.14,159.04,20.0]
[1724538783039,1.25954884,159.13,159.04,20.0]
[1724538783240,7.54364884,159.13,159.07,6.2861]
[1724538783847,7.54364884,159.13,159.08,6.2859]
[1724538784359,51.2838,159.14,159.09,6.2856]
[1724538784565,45.0,159.14,159.1,6.2853]
[1724538784750,16.4509,159.16,159.12,6.2844]
[1724538784931,16.4509,159.16,159.05,27.34519465]
[1724538785130,16.4509,159.16,159.12,6.2842]
[1724538785653,22.7339,159.16,159.11,6.2848]
[1724538786029,16.4509,159.16,159.11,6.2848]
[1724538786450,16.4509,159.16,159.12,6.2843]
[1724538788248,16.4509,159.16,159.13,6.284]
[1724538788437,16.4509,159.16,159.07,38.16484691]
[1724538788635,6.2821,159.19,159.08,24.59535226]
[1724538788850,45.0,159.18,159.08,36.093]
[1724538789178,6.1779,159.22,159.19,6.2818]
[1724538789474,16.4509,159.24,159.19,6.2818]
[1724538789761,6.2804,159.23,159.18,6.2821]
[1724538789964,6.2804,159.23,159.11,27.34519465]
[1724538789965,27.34519465,159.2,159.14,6.2834]
[1724538790259,27.34519465,159.2,159.15,6.2833]
[1724538790464,6.2813,159.21,159.15,6.2833]
[1724538790652,45.0,159.2,159.15,6.2833]
[1724538791348,51.2814,159.2,159.15,6.2833]
[1724538794058,7.54134884,159.19,159.11,1.57263575]
[1724538794277,7.54134884,159.19,159.1,20.0]
[1724538794437,7.54134884,159.19,159.12,1.57267019]
[1724538794643,7.54134884,159.19,159.13,6.2837]
[1724538794879,7.54134884,159.19,159.11,1.57267019]
[1724538794880,27.34519465,159.18,159.12,1.57267019]
[1724538795057,51.2826,159.17,159.12,6.2844]
[1724538795464,45.0,159.17,159.12,6.2844]
[1724538796138,45.0,159.17,159.11,1.57267019]
[1724538796347,12.3475,159.19,159.11,1.57267019]
[1724538796548,45.0,159.18,159.09,20.0]
[1724538797067,15.8988,159.17,159.12,6.2841]
[1724538797253,1.25954884,159.16,159.09,20.0]
[1724538797453,1.25954884,159.16,159.06,20.0]
[1724538798578,6.2834,159.15,159.06,20.0]
[1724538798742,33.62819465,159.16,159.06,20.0]
[1724538799566,1.25954884,159.15,159.06,20.0]
[1724538799751,45.0,159.15,159.05,20.0]
[1724538800268,45.0,159.15,159.11,6.2848]
[1724538802265,45.0,159.15,159.05,20.0]
[1724538802480,6.2842,159.13,159.08,6.2861]
[1724538802647,1.25954884,159.12,159.03,6.5263]
[1724538802848,73.60474349,159.12,159.03,6.5263]
[1724538803063,72.34519465,159.12,159.03,6.5263]
[1724538803258,6.2855,159.1,159.04,6.2874]
[1724538803569,33.63069465,159.1,159.04,6.2874]
[1724538803771,33.63069465,159.1,159.05,6.2871]
[1724538804349,78.62979465,159.12,159.01,4.5964021]
[1724538804547,45.0,159.12,159.01,4.5964021]
[1724538804752,51.2845,159.13,159.07,6.2864]
[1724538805650,45.0,159.13,159.02,4.59637824]
[1724538805974,45.0,159.13,159.09,6.2856]
[1724538806542,45.0,159.13,159.1,6.2852]
[1724538806745,45.0,159.13,159.03,4.59637824]
[1724538806746,43.24399465,159.17,159.11,6.2848]
[1724538807143,15.8988,159.17,159.11,6.2848]
[1724538807982,15.8988,159.17,159.06,33.87149465]
[1724538808152,6.0657,159.19,159.08,42.52749465]
[1724538808353,15.8988,159.21,159.1,27.34519465]
[1724538808550,15.8988,159.21,159.11,20.0]
[1724538808763,15.8988,159.21,159.18,6.2819]
[1724538808959,1.25954884,159.2,159.11,20.0]
[1724538809170,22.1798,159.21,159.11,20.0]
[1724538809896,6.2814,159.2,159.11,20.0]
[1724538810080,6.2822,159.18,159.09,20.0]
[1724538810255,46.25954884,159.17,159.09,20.0]
[1724538810459,45.0,159.17,159.13,6.2841]
[1724538812078,1.25954884,159.16,159.09,20.0]
[1724538812388,6.2831,159.16,159.11,6.2849]
[1724538812564,45.0,159.17,159.13,6.2841]
[1724538813381,45.0,159.17,159.14,6.2837]
[1724538813571,45.0,159.18,159.14,6.2837]
[1724538815195,45.0,159.18,159.15,6.283]
[1724538817588,45.0,159.18,159.16,6.2826]
[1724538817991,45.0,159.18,159.15,6.2833]
[1724538818194,45.0,159.19,159.15,6.2833]
[1724538818970,45.0,159.2,159.15,6.2833]
[1724538820075,51.2814,159.2,159.15,6.2833]
[1724538820275,6.2822,159.18,159.12,6.2842]
[1724538820473,45.0,159.17,159.11,9.1880833]
[1724538820677,51.2817,159.2,159.14,6.2834]
[1724538821668,6.2818,159.19,159.14,6.2834]
[1724538821895,45.0,159.18,159.14,6.2834]
[1724538822481,45.0,159.18,159.15,6.2831]
[1724538823692,45.0,159.19,159.15,6.2831]
[1724538828302,45.0,159.19,159.16,6.2829]
[1724538831286,33.10803607,159.21,159.16,6.2829]
[1724538831492,45.0,159.2,159.16,6.2829]
[1724538832691,15.8988,159.21,159.12,26.10173607]
[1724538832888,21.4373,159.25,159.2,6.2814]
[1724538833203,6.2798,159.24,159.19,6.2817]
[1724538833377,15.1578,159.25,159.13,6.5411]
[1724538833378,10.92823607,159.22,159.13,6.5411]
[1724538833574,17.20883607,159.22,159.14,20.0]
[1724538833877,10.92823607,159.22,159.18,6.2821]
[1724538834303,45.0,159.21,159.18,6.2821]
[1724538836682,45.0,159.22,159.18,6.2821]
[1724538837293,45.0,159.22,159.19,6.2817]
[1724538837990,42.46651588,159.25,159.16,0.94935886]
[1724538837991,15.1578,159.25,159.16,0.94935886]
[1724538838177,45.0,159.24,159.22,6.2805]
[1724538838789,45.0,159.24,159.21,6.2809]
[1724538840410,15.1578,159.29,159.17,4.5930258]
[1724538840710,1.25954884,159.28,159.17,24.5930258]
[1724538840887,15.1578,159.29,159.17,24.5930258]
[1724538841091,15.1578,159.29,159.24,6.2798]
[1724538841490,1.25954884,159.28,159.19,15.9851]
[1724538841691,1.25954884,159.28,159.17,20.0]
[1724538841692,6.2791,159.26,159.21,6.281]
[1724538841991,6.2791,159.26,159.17,20.0]
[1724538841992,34.84776472,159.25,159.2,6.2813]
[1724538842189,28.56826472,159.25,159.2,6.2813]
[1724538842399,1.25954884,159.25,159.2,6.2813]
[1724538842805,45.0,159.25,159.2,6.2813]
[1724538844682,28.56826472,159.24,159.14,15.9851]
[1724538844881,6.281,159.21,159.14,15.9851]
[1724538845195,72.30871588,159.2,159.15,6.2833]
[1724538846095,78.59031588,159.2,159.15,6.2833]
[1724538847597,27.30871588,159.18,159.15,6.2833]
[1724538847794,27.30871588,159.18,159.16,6.2828]
[1724538848000,45.0,159.2,159.16,6.2828]
[1724538848001,72.30871588,159.2,159.16,6.2828]
[1724538848734,16.4541,159.22,159.11,4.59395588]
[1724538848936,1.25954884,159.21,159.18,6.2821]
[1724538849110,1.25954884,159.21,159.16,6.2826]
[1724538849311,43.76281588,159.22,159.16,6.2826]
[1724538849611,50.04371588,159.22,159.17,6.2824]
[1724538850014,45.0,159.21,159.15,6.283]
[1724538850330,45.0,159.21,159.11,4.59395588]
[1724538850640,45.0,159.21,159.11,24.5937682]
[1724538851226,45.0,159.21,159.12,4.5937682]
[1724538851523,45.0,159.21,159.12,24.5937682]
[1724538851834,45.0,159.21,159.13,4.5937682]
[1724538852316,51.281,159.21,159.12,4.5937682]
[1724538853638,45.0,159.21,159.13,4.5937682]
[1724538853839,45.0,159.21,159.12,4.5937682]
[1724538854539,45.0,159.21,159.13,4.5937682]
[1724538854732,45.0,159.21,159.12,4.5937682]
[1724538854957,45.0,159.21,159.13,4.5937682]
[1724538855113,45.0,159.21,159.12,4.5937682]
[1724538855314,45.0,159.21,159.17,6.2825]
[1724538858517,10.92793291,159.2,159.17,6.2825]
[1724538858821,45.0,159.19,159.17,6.2825]
[1724538859141,12.18748175,159.18,159.12,4.5937682]
[1724538859347,46.25954884,159.17,159.15,6.2833]
[1724538859517,46.25954884,159.17,159.13,6.2838]
[1724538859518,10.92793291,159.16,159.13,6.2838]
[1724538859717,10.92793291,159.16,159.14,1.57267063]
[1724538859978,10.92793291,159.16,159.14,6.2837]
[1724538860532,45.0,159.17,159.14,6.2837]
[1724538860716,45.0,159.18,159.14,6.2837]
[1724538861553,45.0,159.18,159.15,6.2832]
[1724538861917,45.0,159.18,159.17,6.2825]
[1724538862137,27.32817043,159.21,159.17,7.85498524]
[1724538862325,45.0,159.2,159.17,6.2825]
[1724538862517,27.32817043,159.21,159.17,6.2825]
[1724538863132,27.32817043,159.21,159.15,7.49280466]
[1724538863441,27.32817043,159.21,159.18,6.2821]
[1724538863640,27.32817043,159.21,159.11,1.25653078]
[1724538863641,15.6542,159.26,159.14,6.3214]
[1724538863851,27.32817043,159.25,159.21,6.2808]
[1724538864431,21.9332,159.26,159.21,6.2808]
[1724538865135,45.0,159.25,159.21,6.2808]
[1724538865344,27.32817043,159.29,159.19,2.89774775]
[1724538865635,27.32817043,159.29,159.2,1.57200412]
[1724538865940,27.32817043,159.29,159.21,1.57200412]
[1724538866150,27.32817043,159.29,159.24,6.2798]
[1724538866926,33.60607043,159.29,159.24,6.2798]
[1724538867133,1.25954884,159.28,159.23,6.2801]
[1724538867946,27.32817043,159.25,159.21,6.2809]
[1724538868150,27.32817043,159.23,159.2,1.57192098]
[1724538868449,27.32817043,159.23,159.17,6.2825]
[1724538868450,27.32817043,159.21,159.17,6.2825]
[1724538868632,1.25954884,159.2,159.16,6.2829]
[1724538868836,46.25954884,159.2,159.16,6.2829]
[1724538869331,28.58771927,159.19,159.15,6.2833]
[1724538869749,28.58771927,159.19,159.12,2.89918326]
[1724538869750,45.0,159.18,159.12,2.89918326]
[1724538869938,27.32817043,159.15,159.11,6.2845]
[1724538870138,45.0,159.14,159.12,6.2845]
[1724538870851,45.0,159.14,159.11,6.2849]
[1724538871057,27.32817043,159.13,159.09,6.2857]
[1724538871228,46.25954884,159.12,159.09,6.2857]
[1724538871430,45.0,159.12,159.09,6.2857]
[1724538874738,45.0,159.12,159.1,6.2853]
[1724538876330,27.32817043,159.11,159.02,6.4772]
[1724538876660,46.25954884,159.1,159.02,6.4772]
[1724538877446,46.25954884,159.1,159.06,6.2865]
[1724538877647,45.0,159.1,159.07,6.2863]
[1724538879455,45.0,159.1,159.08,6.2861]
[1724538879870,45.0,159.1,159.09,6.2857]
[1724538880162,15.5158,159.14,159.02,6.4772]
[1724538880337,15.5158,159.14,159.12,6.2843]
[1724538880537,15.5158,159.14,159.11,6.2849]
[1724538880757,15.5158,159.14,159.12,6.2845]
[1724538881849,1.25954884,159.13,159.02,41.07215573]
[1724538882153,1.25954884,159.13,159.03,20.0]
[1724538882362,46.25954884,159.13,159.11,6.2849]
[1724538884067,45.0,159.13,159.11,6.2849]
[1724538886646,45.0,159.13,159.12,6.2845]
[1724538886846,15.5158,159.14,159.12,6.2845]
[1724538887160,15.5158,159.18,159.14,6.2836]
[1724538887462,15.5158,159.18,159.16,6.2829]
[1724538888862,45.0,159.17,159.16,6.2829]
[1724538890672,15.5158,159.18,159.16,6.2829]
[1724538893074,15.5158,159.18,159.17,6.2825]
[1724538893278,60.5158,159.18,159.17,6.2825]
[1724538894085,60.5158,159.18,159.16,6.2829]
[1724538895869,60.5158,159.18,159.09,6.4772]
[1724538895870,1.25954884,159.17,159.09,6.4772]
[1724538896076,27.32817043,159.16,159.12,6.2842]
[1724538896276,27.32817043,159.16,159.11,6.2849]
[1724538896277,46.25954884,159.15,159.11,6.2849]
[1724538896459,28.58771927,159.14,159.11,6.2849]
[1724538896665,45.0,159.13,159.11,6.2849]
[1724538899069,28.58771927,159.12,159.05,6.2346]
[1724538899372,45.0,159.11,159.05,6.2346]
[1724538899770,45.0,159.11,159.09,6.2854]
[1724538900458,45.0,159.11,159.1,6.2853]
[1724538905486,27.32817043,159.14,159.12,6.2844]
[1724538905672,45.0,159.13,159.12,6.2844]
[1724538905870,45.0,159.13,159.11,6.2849]
[1724538906271,45.0,159.13,159.12,6.2845]
[1724538906659,27.32817043,159.14,159.12,6.2845]
[1724538908076,27.32817043,159.14,159.05,6.2346]
[1724538908077,27.32817043,159.14,159.13,6.2841]
[1724538908386,27.32817043,159.14,159.05,6.2346]
[1724538908387,15.5158,159.18,159.07,27.32817043]
[1724538908683,15.5158,159.18,159.15,6.2833]
[1724538909688,45.0,159.17,159.15,6.2833]
[1724538910599,6.4838,159.21,159.05,6.2346]
[1724538910600,15.0139,159.22,159.18,6.2821]
[1724538910895,7.54054884,159.21,159.16,6.2826]
[1724538911096,28.58771927,159.2,159.16,6.2826]
[1724538911889,28.58771927,159.2,159.08,22.7755]
[1724538911890,27.32817043,159.18,159.08,22.7755]
[1724538912097,1.25954884,159.17,159.09,20.0]
[1724538912295,27.32817043,159.16,159.13,6.284]
[1724538912595,27.32817043,159.16,159.09,20.0]
[1724538912596,46.25954884,159.15,159.12,6.2842]
[1724538912771,1.25954884,159.14,159.12,6.2842]
[1724538912975,28.58771927,159.14,159.12,6.2842]
[1724538913565,45.0,159.15,159.12,6.2842]
[1724538914178,1.25954884,159.14,159.12,6.2842]
[1724538915669,45.0,159.15,159.13,6.2841]
[1724538915873,32.91373099,159.25,159.08,22.7755]
[1724538915874,6.5856,159.23,159.16,6.2829]
[1724538916185,27.32817043,159.18,159.08,22.7755]
[1724538916392,1.25954884,159.17,159.09,20.0]
[1724538916900,6.5856,159.23,159.09,20.0]
[1724538916901,27.32817043,159.2,159.16,6.2829]
[1724538917392,27.32817043,159.18,159.16,6.2829]
[1724538917598,45.0,159.17,159.15,6.2833]
[1724538918468,27.32817043,159.2,159.09,20.0]
[1724538919596,27.32817043,159.2,159.17,6.2825]
[1724538919896,45.0,159.19,159.17,6.2825]
[1724538920398,15.0139,159.22,159.1,27.32817043]
[1724538920585,49.42957043,159.26,159.2,6.2813]
[1724538920898,49.42957043,159.26,159.21,6.2808]
[1724538921597,43.15057043,159.26,159.22,6.2805]
[1724538922485,43.15057043,159.26,159.21,6.2809]
[1724538923064,45.0,159.25,159.21,6.2809]
[1724538926206,45.0,159.25,159.17,1.2556726]
[1724538926371,45.0,159.25,159.18,1.25559372]
[1724538926994,27.32817043,159.29,159.24,6.2798]
[1724538927185,15.8224,159.36,159.2,27.32817043]
[1724538927519,33.60487043,159.32,159.21,24.59216812]
[1724538927706,27.32817043,159.28,159.21,20.0]
[1724538927866,1.25954884,159.27,159.21,20.0]
[1724538928070,1.25954884,159.27,159.19,22.0747]
[1724538928071,1.25954884,159.27,159.2,20.0]
[1724538928494,1.25954884,159.27,159.25,6.279]
[1724538928804,46.25954884,159.27,159.25,6.279]
[1724538929002,1.25954884,159.26,159.24,6.2797]
[1724538929173,28.58771927,159.26,159.24,6.2797]
[1724538929375,45.0,159.25,159.24,6.2797]
[1724538929792,45.0,159.25,159.23,6.2801]
[1724538930294,45.0,159.25,159.21,7.85236767]
[1724538930504,45.0,159.25,159.22,6.2804]
[1724538930890,27.32817043,159.24,159.18,6.2818]
[1724538931072,27.32817043,159.22,159.16,2.89688173]
[1724538931272,45.0,159.21,159.17,1.57216181]
[1724538931476,45.0,159.21,159.16,2.89688173]
[1724538931704,45.0,159.21,159.17,1.57213194]
[1724538931902,45.0,159.21,159.16,2.89688173]
[1724538931903,45.0,159.21,159.16,4.46904879]
[1724538932074,45.0,159.21,159.19,6.2817]
[1724538936997,27.32817043,159.24,159.2,6.2814]
[1724538937295,27.32817043,159.24,159.15,22.0747]
[1724538937296,27.32817043,159.24,159.21,6.2809]
[1724538937811,27.32817043,159.26,159.22,6.2805]
[1724538938012,6.2787,159.27,159.22,6.2805]
[1724538938715,51.279,159.26,159.2,6.281]
[1724538938893,78.60717043,159.26,159.2,6.281]
[1724538939619,78.60717043,159.26,159.21,6.2808]
[1724538940493,72.32817043,159.26,159.23,6.2801]
[1724538941091,72.32817043,159.26,159.16,2.89666316]
[1724538941284,72.32817043,159.26,159.16,22.89666316]
[1724538941494,72.32817043,159.26,159.16,20.0]
[1724538942303,72.32817043,159.26,159.21,6.2809]
[1724538943293,78.60727043,159.26,159.21,6.2809]
[1724538945810,72.32817043,159.26,159.16,20.0]
[1724538946113,15.8224,159.29,159.26,6.2789]
[1724538946324,33.60487043,159.32,159.27,6.2786]
[1724538946698,27.32817043,159.32,159.28,6.2781]
[1724538946917,21.9652,159.33,159.29,6.2778]
[1724538946918,15.6889,159.33,159.29,6.2778]
[1724538947631,15.6889,159.33,159.3,6.2774]
[1724538948705,45.0,159.32,159.3,6.2774]
[1724538948907,45.0,159.32,159.29,6.2778]
[1724538949719,45.0,159.32,159.3,6.2773]
[1724538949921,45.0,159.32,159.29,6.2778]
[1724538957421,44.0,159.32,159.29,6.2778]
[1724538960428,6.2751,159.36,159.3,6.2771]
[1724538960602,16.4175,159.37,159.29,6.2778]
[1724538960603,33.60407043,159.34,159.29,6.2778]
[1724538960803,1.25954884,159.33,159.29,6.2778]
[1724538960997,28.58771927,159.32,159.22,21.8456]
[1724538961229,27.32817043,159.3,159.23,20.0]
[1724538961436,27.32817043,159.31,159.27,6.2783]
[1724538961818,45.0,159.3,159.28,6.2782]
[1724538962714,46.25954884,159.3,159.27,6.2786]
[1724538963032,46.25954884,159.3,159.22,6.1728]
[1724538963033,27.32817043,159.29,159.22,6.1728]
[1724538963238,45.0,159.28,159.22,6.1728]
[1724538963834,45.0,159.28,159.24,6.2798]
[1724538964419,45.0,159.28,159.26,6.2789]
[1724538965209,27.32817043,159.27,159.23,6.2798]
[1724538965437,45.0,159.26,159.23,6.2798]
[1724538965612,45.0,159.26,159.19,7.48661858]
[1724538965613,45.0,159.26,159.24,6.2797]
[1724538966547,27.32817043,159.29,159.25,6.2794]
[1724538966717,45.0,159.28,159.25,6.2794]
[1724538966921,28.58771927,159.27,159.19,7.48661858]
[1724538967122,46.25954884,159.26,159.2,20.0]
[1724538967343,27.32817043,159.25,159.2,20.0]
[1724538967723,27.32817043,159.25,159.19,20.0]
[1724538968044,28.58771927,159.25,159.19,20.0]
[1724538968759,45.0,159.24,159.21,6.2806]
[1724538969045,27.32817043,159.25,159.14,58.91616981]
[1724538969220,27.32817043,159.27,159.15,4.59174446]
[1724538969423,45.0,159.26,159.16,4.59174446]
[1724538970231,45.0,159.26,159.23,6.28]
[1724538972051,72.32817043,159.27,159.16,4.59174446]
[1724538972218,72.32817043,159.27,159.16,24.59174446]
[1724538972421,72.32817043,159.27,159.17,4.59174446]
[1724538972714,27.32817043,159.25,159.17,24.59174446]
[1724538972917,45.0,159.24,159.21,6.2809]
[1724538973949,45.0,159.24,159.22,6.2805]
[1724538975115,45.0,159.24,159.17,20.0]
[1724538975116,45.0,159.24,159.23,6.2802]
[1724538975332,27.32817043,159.28,159.23,6.2802]
[1724538975542,45.0,159.27,159.23,6.2802]
[1724538975951,45.0,159.27,159.24,6.2797]
[1724538979651,28.58771927,159.26,159.18,4.58317948]
[1724538979837,45.0,159.25,159.18,4.58317948]
[1724538980024,45.0,159.25,159.22,6.2802]
[1724538980224,27.32817043,159.26,159.24,6.2798]
[1724538980425,10.91792428,159.26,159.24,6.2798]
[1724538981355,10.91792428,159.26,159.25,6.2794]
[1724538981653,10.91792428,159.26,159.24,6.2797]
[1724538981654,55.91792428,159.26,159.24,6.2797]
[1724538983329,1.25954884,159.25,159.23,6.2801]
[1724538983534,10.91792428,159.24,159.23,6.2801]
[1724538986726,55.91792428,159.24,159.14,21.4251]
[1724538986929,46.25954884,159.23,159.19,6.2814]
[1724538987161,10.91792428,159.2,159.19,6.2814]
[1724538990046,45.0,159.23,159.14,21.4251]
[1724538990219,10.91792428,159.21,159.2,6.2814]
[1724538994247,55.91792428,159.21,159.2,6.2814]
[1724538996032,55.91792428,159.21,159.15,20.0]
[1724538996350,55.91792428,159.21,159.19,6.2814]
[1724538996658,55.91792428,159.21,159.18,6.2821]
[1724538996848,45.0,159.2,159.18,6.2821]
[1724538997151,1.25954884,159.19,159.18,6.2821]
[1724538997358,12.17747312,159.19,159.16,1.57220384]
[1724538997654,12.17747312,159.19,159.17,6.2825]
[1724538997840,10.91792428,159.19,159.17,6.2825]
[1724538999857,45.0,159.2,159.18,6.2821]
[1724539003350,22.6668,159.23,159.12,18.18470958]
[1724539003351,16.3866,159.23,159.14,1.57234291]
[1724539003561,45.0,159.22,159.2,6.2813]
[1724539004844,45.0,159.22,159.21,6.281]
[1724539005047,45.0,159.22,159.15,1.57228914]
[1724539005349,45.0,159.22,159.16,1.57229013]
[1724539005672,45.0,159.22,159.15,20.0]
[1724539006159,45.0,159.22,159.2,6.2813]
[1724539006566,6.2789,159.27,159.22,6.2806]
[1724539006755,10.91792428,159.24,159.22,6.2806]
[1724539007465,1.25954884,159.23,159.21,6.2809]
[1724539007974,46.25954884,159.23,159.21,6.2809]
[1724539008669,45.0,159.23,159.21,6.2809]
[1724539010464,10.91792428,159.22,159.21,6.2809]
[1724539010669,55.91792428,159.22,159.21,6.2809]
[1724539011167,55.91792428,159.22,159.15,20.0]
[1724539011371,55.91792428,159.22,159.11,7.2667853]
[1724539011372,10.91792428,159.18,159.17,6.2825]
[1724539012479,16.3866,159.28,159.14,10.91792428]
[1724539012661,16.3866,159.28,159.15,27.2667853]
[1724539012662,10.91792428,159.25,159.15,27.2667853]
[1724539012848,10.91792428,159.25,159.21,6.2806]
[1724539013047,16.3866,159.28,159.22,6.2804]
[1724539013048,6.2787,159.27,159.22,6.2804]
[1724539013261,10.91792428,159.26,159.23,6.2798]
[1724539014175,10.91792428,159.24,159.21,6.2806]
[1724539014373,1.25954884,159.23,159.21,6.2806]
[1724539014672,46.25954884,159.23,159.21,6.2806]
[1724539014857,46.25954884,159.23,159.22,6.2806]
[1724539015177,46.25954884,159.23,159.21,6.2809]
[1724539015673,10.91792428,159.22,159.21,6.2809]
[1724539015854,57.17747312,159.22,159.16,6.3552]
[1724539016054,12.17747312,159.22,159.17,20.0]
[1724539016256,12.17747312,159.22,159.19,6.2817]
[1724539016470,10.91792428,159.2,159.19,6.2817]
[1724539016853,55.91792428,159.2,159.19,6.2817]
[1724539017173,10.91792428,159.22,159.2,6.2813]
[1724539018349,45.0,159.21,159.2,6.2813]
[1724539019489,60.05829712,159.28,159.17,20.0]
[1724539019490,6.2789,159.27,159.17,20.0]
[1724539019651,10.91792428,159.26,159.17,20.0]
[1724539019846,10.91792428,159.26,159.18,20.0]
[1724539019847,10.91792428,159.24,159.18,20.0]
[1724539020090,10.91792428,159.24,159.14,20.0]
[1724539020764,45.0,159.23,159.14,20.0]
[1724539023788,45.0,159.23,159.21,6.2806]
[1724539025183,16.3866,159.28,159.15,10.91792428]
[1724539025365,10.91792428,159.27,159.24,6.2798]
[1724539025562,10.91792428,159.27,159.23,6.2801]
[1724539026671,10.91792428,159.27,159.17,10.91792428]
[1724539026672,45.0,159.26,159.21,6.2806]
[1724539027287,45.0,159.26,159.23,6.28]
[1724539029085,45.0,159.26,159.24,6.2798]
[1724539029258,10.91792428,159.26,159.24,6.2798]
[1724539029458,45.0,159.25,159.24,6.2798]
[1724539029660,45.0,159.25,159.23,6.2801]
[1724539030498,22.6648,159.28,159.2,2.88936188]
[1724539030499,16.3866,159.28,159.21,2.88936188]
[1724539030653,10.91792428,159.3,159.21,20.0]
[1724539030853,10.91792428,159.3,159.22,2.88876986]
[1724539031156,10.91792428,159.3,159.22,20.0]
[1724539031879,10.91792428,159.28,159.2,20.0]
[1724539032073,10.91792428,159.26,159.25,6.2792]
[1724539032373,57.17747312,159.26,159.23,6.2799]
[1724539032556,12.17747312,159.26,159.23,6.2799]
[1724539032759,45.0,159.25,159.23,6.2799]
[1724539032970,1.25954884,159.24,159.23,6.2799]
[1724539033172,45.0,159.25,159.23,6.2799]
[1724539033371,45.0,159.25,159.24,6.2798]
[1724539033766,10.91792428,159.28,159.26,6.2789]
[1724539034285,6.277,159.31,159.26,6.2789]
[1724539034286,10.91792428,159.29,159.26,6.2789]
[1724539035664,45.0,159.28,159.26,6.2789]
[1724539036993,45.0,159.28,159.27,6.2786]
[1724539037171,10.91792428,159.31,159.27,6.2786]
[1724539037370,45.0,159.3,159.27,6.2786]
[1724539038894,10.91792428,159.29,159.26,6.2789]
[1724539039192,46.25954884,159.28,159.26,6.2789]
[1724539039369,10.91792428,159.27,159.26,6.2789]
[1724539039688,55.91792428,159.27,159.25,6.2793]
[1724539039988,45.0,159.27,159.25,6.2793]
[1724539040199,45.0,159.28,159.25,6.2793]
[1724539040887,45.0,159.28,159.26,6.279]
[1724539041297,45.0,159.28,159.2,20.0]
[1724539041298,45.0,159.28,159.27,6.2786]
[1724539041465,10.91792428,159.31,159.27,6.2786]
[1724539041671,16.5174,159.32,159.22,10.91792428]
[1724539041971,55.91792428,159.31,159.23,20.0]
[1724539042484,55.91792428,159.31,159.29,6.2778]
[1724539042684,55.91792428,159.31,159.28,6.2781]
[1724539042895,1.25954884,159.3,159.28,6.2781]
[1724539043702,55.91792428,159.31,159.28,6.2781]
[1724539044381,57.17747312,159.31,159.28,6.2781]
[1724539045100,45.0,159.31,159.29,6.2778]
[1724539045799,46.25954884,159.31,159.29,6.2778]
[1724539046400,46.25954884,159.31,159.28,6.2781]
[1724539047072,10.91792428,159.3,159.28,6.2781]
[1724539047773,46.25954884,159.29,159.27,6.2786]
[1724539048898,45.0,159.29,159.27,6.2786]
[1724539050581,46.25954884,159.29,159.27,6.2786]
[1724539052082,45.0,159.29,159.27,6.2786]
[1724539053200,12.17747312,159.28,159.26,6.2789]
[1724539053495,45.0,159.29,159.23,20.0]
[1724539053679,10.91792428,159.3,159.24,20.0]
[1724539053882,10.91792428,159.3,159.22,20.0]
[1724539054078,10.91792428,159.3,159.29,6.2778]
[1724539054394,16.5174,159.32,159.23,4.57699611]
[1724539054581,10.91792428,159.33,159.24,7.87202154]
[1724539054781,10.91792428,159.33,159.25,20.0]
[1724539055288,10.91792428,159.33,159.3,6.2773]
[1724539055697,45.0,159.32,159.3,6.2773]
[1724539056074,45.0,159.32,159.25,20.0]